Workbook

Sheet Arkusz1
B1: Rachunek zysków i strat za 2014
B2: FUNDACJI EDF POLSKA
B3: (wariant porównawczy) | H3: REGON 278238536
C4: Wyszczególnienie | H4: KWOTY za rok
H5: poprzedni | I5: obrotowy
B6: A. Przychody dział. pożytku publiczn. oraz darowizna od funtatora | H6: 5440680.31 | I6: 4616587.43
B7: B. Koszty realizacji zadań pożytku publicznego | H7: =H8+H20 -> 5763172.11 | I7: =I8+I20 -> 5213456.54
B8: a/ działalność nieodpłatna | H8: =H9+H10+H11+H12+H13+H14+H15+H16+H17+H18 -> 1368205.44 | I8: =I9+I10+I11+I12+I13+I14+I15+I16+I17+I18 -> 1198086.62
B9: 1) amortyzacja | H9: 12394.49 | I9: 12451.05
B10: 2) zużycie materiałów | H10: 39060.09 | I10: 39219.91
B11: 3) zużycie energii | H11: 18988.64 | I11: 17176.5
B12: 4) usługi obce | H12: 228020.16 | I12: 186422.19
B13: 5) podatki i opłaty | H13: 468073.23 | I13: 16847.54
B14: 6) wynagrodzenia | H14: 467864.28 | I14: 439443.89
B15: 7) ubezpieczenia społeczne i inne świadczenia | H15: 86786.39 | I15: 81605
B16: 8) podróże służbowe | H16: 13716.24 | I16: 11651.21
B17: 9) koszty reprezentacji i reklamy | H17: 9511.68 | I17: 8545.98
B18: 10)pozostałe koszty | H18: 23790.24 | I18: 384723.35
B20: b/ działalność odpłatna | H20: =H21+H22+H23+H24+H25+H26+H27+H28+H29+H30 -> 4394966.67 | I20: =I21+I22+I23+I24+I25+I26+I27+I28+I29+I30 -> 4015369.92
B21: 1)amortyzacja | H21: 204345.08 | I21: 183523.12
B22: 2)zużycie materiałów | H22: 318551.59 | I22: 219119.39
B23: 3)zużycie energii | H23: 437111.45 | I23: 414701.34
B24: 4)usługi obce | H24: 806104.25 | I24: 879533.92
B25: 5)podatki i opłaty | H25: 132184.8 | I25: 123482.85
B26: 6)wynagrodzenia | H26: 1857338.02 | I26: 1648876.7
B27: 7)ubezpieczenia społeczne i inne świadczenia | H27: 494856.14 | I27: 429784.96
B28: 8)podróże służbowe | H28: 23863.85 | I28: 29471.15
B29: 9)koszty reprezentacji i reklamy | H29: 34001.91 | I29: 24961.56
B30: 10)pozostałe koszty | H30: 86609.58 | I30: 61914.93
B31: C .Przychody z podziału zysku | I31: 63416.65
B32: za rok ubiegły
B33: D. Koszty z podziału wyniku finansowego | H33: 793514.27 | I33: 398237.1
B34: za rok ubiegły
B35: E. Wynik finansowy działalności pożytku publicznego
B36: dodatni lub ujemny (A-B+C-D) | H36: =H6-H7+H31-H33 -> -1116006.07 | I36: =I6-I7+I31-I33 -> -931689.56
B37: F. Przychody netto ze sprzedaży produktów,
B38: usług, towarów i materiałów | H38: 1029025.67 | I38: 959597.18
B39: ( działalność gospodarcza)
B40: G.Koszty sprzedaży produktów,usług,towarów, | H40: =H43+H44+H45+H46+H47+H48+H49+H50+H51+H52 -> 411635.73 | I40: =I43+I44+I45+I46+I47+I48+I49+I50+I51+I52 -> 332924.84
B41: materiałów (dział.gospodarcza)
B42: z tego:
B43: 1) amortyzacja | H43: 48509.57 | I43: 39125.54
B44: 2) zużycie materiałów | H44: 32202.61 | I44: 13171.2
B45: 3) zużycie energii | H45: 21874.13 | I45: 17513.01
B46: 4) usługi obce | H46: 31581.37 | I46: 27925.89
B47: 5) podatki i opłaty | H47: 13372.16 | I47: 10918.31
B48: 6) wynagrodzenia | H48: 218963.25 | I48: 183562.47
B49: 7) ubezpieczenia społeczne i inne świadczenia | H49: 42811.01 | I49: 39025.37
B50: 8) podróże służbowe | H50: 650.54 | I50: 257.72
B51: 9) koszty reprezentacji i reklamy | H51: 1671.09 | I51: 981.45
B52: 10)pozostałe koszty | H52: 0 | I52: 443.88
B53: H. Zysk (strata) brutto na sprzedaży (F-G) | H53: =H38-H40 -> 617389.94 | I53: =I38-I40 -> 626672.34
B54: (działalność gospodarcza)
B55: I. Zysk (strata) na działalności statutowej, | H55: =H36+H53 -> -498616.13 | I55: =I36+I53 -> -305017.22
B56: pożytku publicznego i gospodarczej
B57: J.Pozostałe przychody operacyjne | H57: 147772.27 | I57: 295707.21
B58: K. Pozostałe koszty operacyjne i inne | H58: 58822.62 | I58: 204742.66
B59: L. Zysk (strata) na działalności operacyjnej | H59: =H57-H58 -> 88949.65 | I59: =I57-I58 -> 90964.55
B60: Ł. Przychody finansowe | H60: 26052.92 | I60: 30483.61
B61: M. Koszty finansowe | H61: 1003.54 | I61: 46.37
B63: N. Zysk ( strata) z działalności pożytku | H63: =H55+H59+H60-H61 -> -384617.1 | I63: =I55+I59+I60-I61 -> -183615.43
B64: publicznego i gospodarczej
B65: O. Wynik zdarzeń nadzwyczajnych | H65: =H67-H69 -> 0 | I65: =I67-I69 -> 0
B66: w tym działalności statutowej
B67: I. Zyski nadzwyczajne
B68: w tym działalności statutowej
B69: II. Straty nadzwyczajne
B70: w tym działalności statutowej
B71: P. Zysk ( strata ) brutto | H71: =H63+H65 -> -384617.1 | I71: =I63+I65 -> -183615.43
B72: w tym nadwyżka / niedobór działalności pożytku publicznego
B73: R. Podatek dochodowy | H73: 13620 | I73: 10423
B74: S.ZYSK (STRATA) netto | H74: =H71-H73 -> -398237.1 | I74: =I71-I73 -> -194038.43
B76: RYBNIK, DNIA 24-04-2015r
B77: Główny Księgowy | F77: Zatwierdził Zarząd
B78: Fundacji EDF Polska
B79: ANNA MAGIERA | F79: JAN MKOWSKI
B80: (podpis osoby której powierzono
B81: prowadzenie ksiąg rachunkowych)
F82: STANISŁAW WÓJTOWICZ
